bitfinex-derivatives/quotes_BNBF0:USTF0_20230901
["timestamp","ask_amount","ask_price","bid_price","bid_amount"]
[1693600381029,0.17171473,215.44,214.17,0.85761385]
[1693600381232,5.0943127,215.45,214.17,0.07576837]
[1693600381432,0.17171473,215.44,214.17,0.07576837]
[1693600381671,0.17171473,215.44,214.18,0.85761385]
[1693600381831,0.17171473,215.45,214.19,0.07576837]
[1693600382032,0.17171473,215.44,214.2,0.85761385]
[1693600382231,0.17171473,215.46,214.21,0.85761385]
[1693600382433,0.17171473,215.45,214.22,0.85761385]
[1693600382633,5.26602743,215.46,214.23,0.85761385]
[1693600382934,0.17171473,215.45,214.25,0.07576837]
[1693600383129,0.17171473,215.5,214.26,0.85761385]
[1693600383329,0.17171473,215.49,214.24,0.07576837]
[1693600383535,0.17171473,215.51,214.27,0.85761385]
[1693600383731,0.17171473,215.51,214.28,0.85761385]
[1693600384131,0.17171473,215.51,214.27,3.70144373]
[1693600384335,0.17171473,215.51,214.28,3.70144373]
[1693600384534,7.13203779,215.49,214.28,0.85761385]
[1693600384734,5.0943127,215.47,214.29,4.55905758]
[1693600385036,0.17171473,215.46,214.3,4.55905758]
[1693600385231,0.17171473,215.47,214.3,3.70144373]
[1693600385538,0.17171473,215.46,214.31,4.55905758]
[1693600385729,0.17171473,215.46,214.12,0.5051225]
[1693600385730,0.17171473,215.46,214.27,0.93338222]
[1693600385933,0.17171473,215.45,214.32,4.55905758]
[1693600386128,0.17171473,215.44,214.33,0.85761385]
[1693600386434,0.17171473,215.43,214.28,0.85761385]
[1693600386630,0.17171473,215.51,214.29,4.55905758]
[1693600386932,0.17171473,215.51,214.3,4.55905758]
[1693600387132,0.17171473,215.51,214.27,0.85761385]
[1693600387332,0.17171473,215.51,214.28,0.85761385]
[1693600387530,0.17171473,215.51,214.29,0.93338222]
[1693600387935,0.17171473,215.53,214.33,0.07576837]
[1693600388135,0.17171473,215.5,214.35,0.07576837]
[1693600388336,0.17171473,215.49,214.36,0.85761385]
[1693600388639,0.17171473,215.59,214.34,0.07576837]
[1693600388840,5.0943127,215.6,214.37,0.85761385]
[1693600388841,0.17171473,215.58,214.37,0.85761385]
[1693600389039,0.17171473,215.59,214.36,3.70144373]
[1693600389240,5.0943127,215.6,214.38,0.85761385]
[1693600389241,0.17171473,215.57,214.38,0.85761385]
[1693600389440,5.0943127,215.54,214.38,0.85761385]
[1693600389634,5.0943127,215.54,214.38,3.70144373]
[1693600389836,0.17171473,215.53,214.3,3.70144373]
[1693600390038,0.17171473,215.53,214.39,3.70144373]
[1693600390238,0.17171473,215.53,214.28,0.07576837]
[1693600390239,0.17171473,215.53,214.31,4.55905758]
[1693600390539,0.17171473,215.53,214.32,4.55905758]
[1693600390740,0.17171473,215.53,214.3,0.85761385]
[1693600390941,5.0943127,215.52,214.31,0.85761385]
[1693600391141,0.17171473,215.51,214.32,0.85761385]
[1693600391342,0.17171473,215.51,214.33,0.85761385]
[1693600391542,0.17171473,215.51,214.34,0.85761385]
[1693600392038,7.30375252,215.51,214.35,0.85761385]
[1693600392236,5.0943127,215.48,214.36,0.85761385]
[1693600392439,0.17171473,215.47,214.37,0.85761385]
[1693600392643,0.17171473,215.47,214.38,0.85761385]
[1693600392842,0.17171473,215.47,214.39,0.85761385]
[1693600393043,0.17171473,215.47,214.34,0.85761385]
[1693600393243,0.17171473,215.47,214.35,0.85761385]
[1693600393444,0.17171473,215.47,214.36,0.85761385]
[1693600393642,5.0943127,215.45,214.37,0.85761385]
[1693600393839,0.17171473,215.44,214.37,4.55905758]
[1693600394042,0.17171473,215.44,214.38,4.55905758]
[1693600394244,0.17171473,215.44,214.39,3.70144373]
[1693600394545,0.17171473,215.44,214.4,4.55905758]
[1693600394744,5.0943127,215.43,214.41,0.85761385]
[1693600394940,0.17171473,215.42,214.38,0.07576837]
[1693600395147,0.17171473,215.42,214.32,0.15153675]
[1693600395148,0.17171473,215.42,214.39,0.93338222]
[1693600395345,0.17171473,215.42,214.4,0.85761385]
[1693600395546,0.17171473,215.43,214.44,0.07576837]
[1693600395745,5.0943127,215.41,214.45,0.85761385]
[1693600396041,0.17171473,215.4,214.45,0.93338222]
[1693600396349,0.17171473,215.4,214.46,4.63482595]
[1693600396545,0.17171473,215.4,214.48,0.07576837]
[1693600396746,0.17171473,215.43,214.52,0.07576837]
[1693600396947,0.17171473,215.42,214.56,0.07576837]
[1693600397147,0.17171473,215.41,214.57,0.85761385]
[1693600397346,0.17171473,215.45,214.56,0.93338222]
[1693600397542,0.17171473,215.44,214.58,0.93338222]
[1693600397749,0.17171473,215.45,214.59,4.55905758]
[1693600397944,0.17171473,215.43,214.62,0.07576837]
[1693600398143,5.0943127,215.48,214.63,0.85761385]
[1693600398144,0.17171473,215.44,214.63,0.85761385]
[1693600398347,0.17171473,215.43,214.63,0.85761385]
[1693600398545,0.17171473,215.48,214.58,0.85761385]
[1693600398751,0.17171473,215.47,214.64,0.85761385]
[1693600398946,5.0943127,215.46,214.65,0.85761385]
[1693600399146,0.17171473,215.46,214.65,0.85761385]
[1693600399449,0.17171473,215.45,214.66,0.85761385]
[1693600399651,5.0943127,215.53,214.64,0.85761385]
[1693600399652,0.17171473,215.52,214.64,0.85761385]
[1693600399849,0.17171473,215.44,214.67,0.85761385]
[1693600400045,0.17171473,215.43,214.68,0.85761385]
[1693600400347,0.17171473,215.42,214.69,0.85761385]
[1693600400554,5.0943127,215.44,214.59,0.93338222]
[1693600400753,5.0943127,215.44,214.52,0.15153675]
[1693600400754,0.17171473,215.43,214.6,4.53571964]
[1693600400953,0.17171473,215.43,214.61,3.67810579]
[1693600401253,0.17171473,215.43,214.62,4.53571964]
[1693600401447,0.17171473,215.44,214.59,0.85761385]
[1693600401653,5.0943127,215.45,214.6,0.85761385]
[1693600401654,0.17171473,215.43,214.6,0.85761385]
[1693600401850,0.17171473,215.44,214.61,0.85761385]
[1693600402056,0.17171473,215.42,214.61,0.85761385]
[1693600402253,0.17171473,215.43,214.62,0.85761385]
[1693600402555,0.17171473,215.42,214.63,0.85761385]
[1693600402749,0.17171473,215.42,214.56,4.537713]
[1693600402949,0.17171473,215.42,214.56,0.85761385]
[1693600403154,0.17171473,215.42,214.55,0.07576837]
[1693600403349,0.17171473,215.42,214.57,0.85761385]
[1693600403556,0.17171473,215.42,214.58,0.85761385]
[1693600403750,0.17171473,215.43,214.57,0.85761385]
[1693600403953,0.17171473,215.42,214.56,0.07576837]
[1693600404148,5.0943127,215.44,214.57,0.85761385]
[1693600404149,0.17171473,215.41,214.57,0.85761385]
[1693600404348,5.0943127,215.44,214.57,0.85761385]
[1693600404349,0.17171473,215.4,214.57,0.85761385]
[1693600404554,0.17171473,215.43,214.57,0.85761385]
[1693600404751,0.17171473,215.39,214.57,0.85761385]
[1693600404952,0.17171473,215.38,214.57,0.85761385]
[1693600405153,0.17171473,215.44,214.56,0.93338222]
[1693600405357,0.17171473,215.43,214.56,0.07576837]
[1693600405553,0.17171473,215.44,214.57,0.85761385]
[1693600405857,0.17171473,215.43,214.58,0.85761385]
[1693600406053,0.17171473,215.45,214.56,0.85761385]
[1693600406253,5.0943127,215.46,214.56,3.68009915]
[1693600406254,0.17171473,215.44,214.56,3.68009915]
[1693600406558,0.17171473,215.43,214.57,4.537713]
[1693600406756,0.17171473,215.45,214.56,0.85761385]
[1693600406957,0.17171473,215.44,214.57,0.85761385]
[1693600407156,0.17171473,215.45,214.55,0.85761385]
[1693600407355,0.17171473,215.44,214.56,0.85761385]
[1693600407656,5.0943127,215.39,214.57,0.85761385]
[1693600407860,5.0943127,215.39,214.25,1.01024501]
[1693600407861,0.17171473,215.38,214.49,0.85761385]
[1693600408060,0.17171473,215.38,214.46,0.07576837]
[1693600408260,0.17171473,215.38,214.47,0.93338222]
[1693600408456,0.17171473,215.38,214.48,0.85761385]
[1693600408959,5.0943127,215.37,214.48,0.85761385]
[1693600409156,0.17171473,215.36,214.47,0.85761385]
[1693600409360,0.17171473,215.36,214.47,0.93338222]
[1693600409664,0.17171473,215.35,214.48,4.54217511]
[1693600409861,0.17171473,215.37,214.48,0.85761385]
[1693600410056,0.17171473,215.36,214.49,0.85761385]
[1693600410259,0.17171473,215.37,214.5,0.85761385]
[1693600410458,0.17171473,215.36,214.51,0.85761385]
[1693600410658,5.0943127,215.35,214.52,0.85761385]
[1693600410862,0.17171473,215.34,214.53,0.85761385]
[1693600411063,0.17171473,215.34,214.49,0.85761385]
[1693600411262,0.17171473,215.34,214.5,0.85761385]
[1693600411558,0.17171473,215.34,214.5,4.61856874]
[1693600411863,0.17171473,215.34,214.51,4.54280037]
[1693600412059,5.0943127,215.33,214.51,0.93338222]
[1693600412362,0.17171473,215.32,214.52,4.54280037]
[1693600412562,0.17171473,215.32,214.52,0.85761385]
[1693600412765,5.0943127,215.31,214.53,0.93338222]
[1693600413061,0.17171473,215.3,214.54,0.85761385]
[1693600413263,0.17171473,215.3,214.55,0.85761385]
[1693600413457,0.17171473,215.3,214.53,0.85761385]
[1693600413660,0.17171473,215.3,214.54,0.85761385]
[1693600413859,0.17171473,215.3,214.53,0.85761385]
[1693600414059,0.17171473,215.3,214.54,0.85761385]
[1693600414260,5.26602743,215.3,214.53,0.93338222]
[1693600414462,0.17171473,215.29,214.54,0.85761385]
[1693600414663,5.0943127,215.28,214.55,0.07576837]
[1693600414864,0.17171473,215.27,214.56,0.85761385]
[1693600415262,0.17171473,215.27,214.56,0.93338222]
[1693600415459,0.17171473,215.27,214.57,0.85761385]
[1693600415762,0.17171473,215.27,214.57,0.93338222]
[1693600415963,0.17171473,215.28,214.57,0.93338222]
[1693600416165,0.17171473,215.26,214.58,0.85761385]
[1693600416363,0.17171473,215.25,214.58,0.85761385]
[1693600416559,0.17171473,215.24,214.58,0.85761385]
[1693600416767,0.17171473,215.28,214.58,0.85761385]
[1693600416965,0.17171473,215.27,214.58,0.85761385]
[1693600417163,5.0943127,215.29,214.58,0.85761385]
[1693600417164,0.17171473,215.28,214.58,0.85761385]
[1693600417363,5.0943127,215.26,214.58,0.85761385]
[1693600417559,0.17171473,215.25,214.58,0.85761385]
[1693600418366,0.17171473,215.25,214.57,0.85761385]
[1693600418561,0.17171473,215.25,214.58,0.85761385]
[1693600418762,0.17171473,215.25,214.57,0.85761385]
[1693600419167,5.26602743,215.25,214.57,0.93338222]
[1693600419366,0.17171473,215.24,214.58,0.93338222]
[1693600419562,0.17171473,215.23,214.59,0.85761385]
[1693600419861,0.17171473,215.22,214.59,0.85761385]
[1693600420066,0.17171473,215.26,214.59,0.85761385]
[1693600420365,5.0943127,215.27,214.59,0.93338222]
[1693600420366,0.17171473,215.25,214.59,0.93338222]
[1693600420561,0.17171473,215.26,214.6,0.85761385]
[1693600420762,0.17171473,215.25,214.6,0.85761385]
[1693600420970,5.0943127,215.25,214.59,0.85761385]
[1693600421260,0.17171473,215.24,214.6,0.85761385]
[1693600421459,0.17171473,215.24,214.61,0.85761385]
[1693600421666,0.17171473,215.24,214.62,0.85761385]
[1693600421869,0.17171473,215.24,214.57,0.07576837]
[1693600422170,0.17171473,215.24,214.58,0.85613134]
[1693600422566,5.0943127,215.23,214.58,0.85613134]
[1693600422761,7.30375252,215.22,214.54,0.85613134]
[1693600422966,0.17171473,215.21,214.55,0.85632316]
[1693600423267,0.17171473,215.21,214.56,0.85632316]
[1693600423468,0.17171473,215.21,214.57,0.85632316]
[1693600423663,0.17171473,215.21,214.53,0.85632316]
[1693600423865,5.0943127,215.19,214.54,0.85633955]
[1693600424063,0.17171473,215.18,214.53,0.85633955]
[1693600424265,0.17171473,215.18,214.54,0.85633955]
[1693600424461,0.17171473,215.18,214.52,0.85633955]
[1693600424666,0.17171473,215.18,214.53,0.85633955]
[1693600424866,0.17171473,215.18,214.54,0.85633955]
[1693600425069,5.0943127,215.17,214.49,0.07576837]
[1693600425268,0.17171473,215.16,214.5,0.85644165]
[1693600425469,0.17171473,215.16,214.51,0.85644165]
[1693600425668,0.17171473,215.16,214.48,0.07576837]
[1693600425669,0.17171473,215.17,214.49,0.85644165]
[1693600425873,0.17171473,215.16,214.5,0.85644165]
[1693600426067,0.17171473,215.17,214.49,0.85644165]
[1693600426264,0.17171473,215.16,214.5,0.85644165]
[1693600426466,0.17171473,215.15,214.51,0.85644165]
[1693600426667,0.17171473,215.14,214.52,0.85644165]
[1693600426869,0.17171473,215.17,214.49,0.85644165]
[1693600427069,0.17171473,215.16,214.5,0.85644165]
[1693600427266,0.17171473,215.15,214.51,0.85644165]
[1693600427468,0.17171473,215.14,214.52,0.85644165]
[1693600427669,0.17171473,215.13,214.53,0.85644165]
[1693600427870,0.17171473,215.12,214.54,0.85644165]
[1693600428067,0.17171473,215.19,214.48,0.85644165]
[1693600428270,0.17171473,215.18,214.49,0.85644165]
[1693600428470,0.17171473,215.19,214.47,0.85644165]
[1693600428672,0.17171473,215.18,214.48,0.85644165]
[1693600428872,0.17171473,215.19,214.47,0.93221002]
[1693600429070,5.0943127,215.2,214.47,0.93221002]
[1693600429071,0.17171473,215.18,214.48,0.85644165]
[1693600429271,0.17171473,215.17,214.48,0.85644165]
[1693600429573,0.17171473,215.16,214.48,0.85644165]
[1693600429872,0.17171473,215.15,214.48,0.85644165]
[1693600430072,0.17171473,215.2,214.48,0.85644165]
[1693600430267,0.17171473,215.14,214.47,0.85644165]
[1693600430471,0.17171473,215.13,214.48,0.85644165]
[1693600430773,0.17171473,215.12,214.49,0.85644165]
[1693600430972,0.17171473,215.11,214.5,0.85644165]
[1693600431275,0.17171473,215.1,214.51,0.85644165]
[1693600431474,0.17171473,215.2,214.45,0.85644165]
[1693600431773,0.17171473,215.19,214.46,0.85644165]
[1693600431971,0.17171473,215.2,214.45,0.93221002]
[1693600432174,0.17171473,215.19,214.46,0.85644165]
[1693600432367,0.17171473,215.18,214.46,0.85644165]
[1693600432570,0.17171473,215.17,214.46,0.85644165]
[1693600432771,0.17171473,215.16,214.46,0.85644165]
[1693600432969,0.17171473,215.15,214.46,0.85644165]
[1693600433174,5.26602743,215.21,214.46,0.93221002]
[1693600433474,0.17171473,215.2,214.47,0.85644165]
[1693600433973,0.17171473,215.2,214.48,0.85644165]
[1693600434174,0.17171473,215.2,214.47,0.07576837]
[1693600434374,0.17171473,215.2,214.48,0.85644165]
[1693600434978,5.0943127,215.18,214.48,0.85644165]
[1693600435280,0.17171473,215.17,214.48,0.85644165]
[1693600435680,0.17171473,215.17,214.47,0.85644165]
[1693600435879,0.17171473,215.17,214.48,0.85670517]
[1693600436080,0.17171473,215.17,214.42,0.85670517]
[1693600436280,0.17171473,215.17,214.42,0.93247354]
[1693600436582,5.0943127,215.12,214.43,0.85670517]
[1693600436781,0.17171473,215.11,214.43,0.85670517]
[1693600437079,0.17171473,215.11,214.43,0.93247354]
[1693600437274,0.17171473,215.11,214.44,0.85670517]
[1693600437473,0.17171473,215.1,214.45,0.85670517]
[1693600437782,0.17171473,215.09,214.46,0.85670517]
[1693600437982,0.17171473,215.12,214.43,0.85670517]
[1693600438181,0.17171473,215.08,214.43,0.85670517]
[1693600438379,0.17171473,215.07,214.42,0.85670517]
[1693600438580,0.17171473,215.12,214.43,0.85670517]
[1693600438776,0.17171473,215.06,214.42,0.85670517]
[1693600438976,0.17171473,215.05,214.42,0.85670517]
[1693600439181,0.17171473,215.04,214.42,0.93247354]
[1693600439381,0.17171473,215.03,214.43,0.85670517]
[1693600439582,5.26602743,215.12,214.43,0.85670517]
[1693600439778,0.17171473,215.11,214.43,0.85670517]
[1693600440282,5.26602743,215.11,214.43,0.93247354]
[1693600440481,0.17171473,215.1,214.44,0.85670517]
[1693600441683,5.26602743,215.1,214.44,0.85670517]
[1693600441882,0.17171473,215.09,214.47,0.07576837]
[1693600442077,0.17171473,215.08,214.48,0.93247354]
[1693600442282,0.17171473,215.07,214.49,0.93247354]
[1693600442484,0.17171473,215.13,214.5,0.85670517]
[1693600442785,0.17171473,215.12,214.5,0.85670517]
[1693600442984,0.17171473,215.11,214.5,0.85670517]
[1693600443178,0.17171473,215.1,214.5,0.85670517]
[1693600443379,0.17171473,215.09,214.5,0.93247354]
[1693600443579,0.17171473,215.08,214.51,0.85670517]
[1693600443783,0.17171473,215.14,214.51,0.85670517]
[1693600443984,0.17171473,215.13,214.51,0.93247354]
[1693600444183,0.17171473,215.12,214.52,0.85670517]
[1693600444384,0.17171473,215.14,214.52,0.85670517]
[1693600444584,0.17171473,215.13,214.52,0.85670517]
[1693600444783,0.17171473,215.12,214.52,0.85670517]
[1693600444983,0.17171473,215.14,214.51,0.85670517]
[1693600445187,0.17171473,215.13,214.52,0.85670517]
[1693600445386,0.17171473,215.12,214.53,0.85670517]
[1693600445587,0.17171473,215.14,214.51,0.85670517]
[1693600445786,0.17171473,215.13,214.52,0.85670517]
[1693600445983,5.26602743,215.14,214.53,0.85670517]
[1693600446186,0.17171473,215.12,214.51,0.85670517]
[1693600446391,0.17171473,215.13,214.49,0.07576837]
[1693600446690,0.17171473,215.12,214.43,0.07576837]
[1693600446881,0.17171473,215.12,214.44,0.85677673]
[1693600447085,0.17171473,215.13,214.44,0.85677673]
[1693600447282,5.0943127,215.08,214.43,0.85677673]
[1693600447589,0.17171473,215.07,214.44,0.85677673]
[1693600447790,0.17171473,215.07,214.43,0.85677673]
[1693600447990,0.17171473,215.07,214.44,0.85677673]
[1693600448289,0.17171473,215.07,214.45,0.85677673]
[1693600448491,0.17171473,215.07,214.4,0.07576837]
[1693600448691,0.17171473,215.07,214.41,0.85681609]
[1693600448892,5.26602743,215.07,214.41,0.85681609]
[1693600449092,0.17171473,215.06,214.41,0.85681609]
[1693600449293,0.17171473,215.06,214.41,0.93258446]
[1693600449592,0.17171473,215.06,214.36,0.07576837]
[1693600449792,0.17171473,215.06,214.37,0.85703733]
[1693600449988,0.17171473,215.06,214.36,0.85703733]
[1693600450195,0.17171473,215.06,214.33,0.07576837]
[1693600450196,7.30375252,215.06,214.37,0.85703733]
[1693600450393,5.0943127,215.03,214.38,0.85703733]
[1693600450593,0.17171473,215.02,214.39,0.85703733]
[1693600450794,0.17171473,215.01,214.4,0.85703733]
[1693600450990,0.17171473,215.03,214.41,0.85703733]
[1693600451192,0.17171473,215.02,214.35,0.07576837]
[1693600451387,0.17171473,215.04,214.36,0.8569948]
[1693600451624,0.17171473,215.03,214.36,0.8569948]
[1693600451802,10.116829,215.14,213.99,2.49210714]
[1693600451994,7.08178036,215.11,214.39,0.07476321]
[1693600452188,0.17171473,215.1,214.4,0.8569948]
[1693600452392,5.05841454,215.08,214.4,0.8569948]
[1693600452595,0.17171473,215.07,214.4,0.8569948]
[1693600452796,0.17171473,215.08,214.4,0.8569948]
[1693600453097,0.17171473,215.07,214.41,0.8569948]
[1693600453292,0.17171473,215.08,214.42,0.8569948]
[1693600453492,5.05841454,215.09,214.38,0.07476321]
[1693600453493,0.17171473,215.07,214.43,0.8569948]
[1693600453688,0.17171473,215.08,214.39,0.8569948]
[1693600453893,5.05841454,215.07,214.4,0.8569948]
[1693600454093,5.05841454,215.07,214.38,0.07476321]
[1693600454094,0.17171473,215.06,214.39,0.8569948]
[1693600454294,0.17171473,215.06,214.4,0.8569948]
[1693600454494,0.17171473,215.06,214.41,0.8569948]
[1693600454797,0.17171473,215.05,214.42,0.8569948]
[1693600454995,0.17171473,215.07,214.39,0.8569948]
[1693600455194,0.17171473,215.06,214.4,0.8569948]
[1693600455695,0.17171473,215.06,214.41,0.8569948]
[1693600455892,0.17171473,215.06,214.39,0.93175801]
[1693600456091,0.17171473,215.06,214.4,0.8569948]
[1693600456295,0.17171473,215.06,214.35,0.07476321]
[1693600456494,0.17171473,215.06,214.36,0.85709447]
[1693600456697,0.17171473,215.06,214.35,0.85709447]
[1693600456899,0.17171473,215.06,214.36,0.85709447]
[1693600457099,0.17171473,215.06,214.37,0.85709447]
[1693600457398,5.05841454,215.01,214.38,0.85709447]
[1693600457599,0.17171473,215.0,214.32,0.07476321]
[1693600457800,0.17171473,215.0,214.33,0.85706286]
[1693600458097,0.17171473,214.99,214.33,0.85706286]
[1693600458297,0.17171473,214.98,214.33,0.85706286]
[1693600458497,0.17171473,215.02,214.33,0.85706286]
[1693600458692,0.17171473,214.97,214.33,0.85706286]
[1693600458897,5.05841454,215.03,214.33,0.85706286]
[1693600458898,0.17171473,214.96,214.33,0.85706286]
[1693600459094,0.17171473,214.95,214.33,0.85706286]
[1693600459296,0.17171473,214.94,214.33,0.85706286]
[1693600459598,5.05841454,215.03,214.33,0.85706286]
[1693600459599,0.17171473,214.93,214.33,0.85706286]
[1693600459794,0.17171473,215.02,214.33,0.85706286]
[1693600460098,0.17171473,215.01,214.33,0.85706286]
[1693600460291,0.17171473,215.02,214.32,0.85706286]
[1693600460492,0.17171473,215.01,214.33,0.85706286]
[1693600460697,5.05841454,215.03,214.34,0.85706286]
[1693600460698,0.17171473,215.0,214.34,0.85706286]
[1693600460998,0.17171473,214.99,214.35,0.85706286]
[1693600461300,0.17171473,214.98,214.36,0.85706286]
[1693600461494,0.17171473,214.97,214.37,0.85706286]
[1693600461695,0.17171473,215.02,214.31,0.85706286]
[1693600461897,0.17171473,215.01,214.32,0.85706286]
[1693600462096,0.17171473,215.02,214.33,0.85706286]
[1693600462293,0.17171473,215.01,214.34,0.85706286]
[1693600462493,0.17171473,215.0,214.35,0.85706286]
[1693600462699,5.05841454,215.04,214.3,0.85706286]
[1693600462700,0.17171473,215.03,214.3,0.85706286]
[1693600462901,0.17171473,215.02,214.31,0.85706286]
[1693600463101,0.17171473,215.01,214.32,0.85706286]
[1693600463401,0.17171473,215.0,214.33,0.85706286]
[1693600463597,0.17171473,215.03,214.3,0.93182607]
[1693600463797,0.17171473,215.02,214.31,0.85706286]
[1693600464000,0.17171473,215.01,214.32,0.85706286]
[1693600464200,0.17171473,215.03,214.31,0.85706286]
[1693600464399,0.17171473,215.02,214.31,0.85706286]
[1693600464598,0.17171473,215.01,214.31,0.85706286]
[1693600464795,0.17171473,215.0,214.31,0.85706286]
[1693600465094,5.05841454,215.05,214.31,0.85706286]
[1693600465095,0.17171473,214.99,214.31,0.85706286]
[1693600465303,0.17171473,214.98,214.31,0.85706286]
[1693600465503,0.17171473,215.04,214.31,0.85706286]
[1693600465704,0.17171473,215.03,214.31,0.93182607]
[1693600465904,0.17171473,215.04,214.32,0.85706286]
[1693600466104,0.17171473,215.03,214.32,0.85706286]
[1693600466304,0.17171473,215.04,214.32,0.85706286]
[1693600466502,0.17171473,215.03,214.32,0.85706286]
[1693600466698,0.17171473,215.02,214.32,0.85706286]
[1693600466903,0.17171473,215.01,214.35,0.07476321]
[1693600467105,0.17171473,215.08,214.36,0.85706286]
[1693600467305,0.17171473,215.07,214.36,0.93182607]
[1693600467604,0.17171473,215.06,214.37,0.85706286]
[1693600467905,0.17171473,215.05,214.37,0.85706286]
[1693600468101,0.17171473,215.09,214.37,0.93182607]
[1693600468297,0.17171473,215.08,214.38,0.85706286]
[1693600468502,0.17171473,215.07,214.39,0.85706286]
[1693600468802,0.17171473,215.06,214.31,0.07476321]
[1693600469003,0.17171473,215.09,214.32,0.8571025]
[1693600469201,0.17171473,215.05,214.31,0.8571025]
[1693600469405,5.05841454,215.01,214.33,0.8571025]
[1693600469605,0.17171473,215.0,214.34,0.8571025]
[1693600469803,0.17171473,215.0,214.32,0.8571025]
[1693600470001,0.17171473,215.0,214.33,0.8571025]
[1693600470202,0.17171473,215.0,214.31,0.93186571]
[1693600470409,0.17171473,215.0,214.32,0.8571025]
[1693600471204,0.17171473,215.0,214.33,0.8571025]
[1693600471408,5.23012927,215.0,214.34,0.8571025]
[1693600471609,0.17171473,214.99,214.31,0.8571025]
[1693600471907,0.17171473,214.99,214.32,0.8571025]
[1693600472108,0.17171473,214.99,214.33,0.8571025]
[1693600472304,0.17171473,214.99,214.31,0.8571025]
[1693600472503,7.08178036,214.96,214.24,0.07476321]
[1693600472708,0.17171473,214.95,214.25,0.8574184]
[1693600472903,0.17171473,214.95,214.24,0.8574184]
[1693600473104,0.17171473,214.95,214.25,0.8574184]
[1693600473302,0.17171473,214.95,214.26,0.8574184]
[1693600473503,5.05841454,214.93,214.27,0.8574184]
[1693600473803,0.17171473,214.92,214.28,0.8574184]
[1693600474007,0.17171473,214.92,214.19,0.07476321]
[1693600474208,0.17171473,214.92,214.2,0.85744846]
[1693600475106,0.17171473,214.91,214.21,0.85744846]
[1693600475308,5.05841454,214.95,214.18,0.07476321]
[1693600475309,0.17171473,214.9,214.22,0.85744846]
[1693600475506,0.17171473,214.95,214.19,0.93221167]
[1693600475704,0.17171473,214.94,214.2,0.85744846]
[1693600475903,0.17171473,214.95,214.2,0.85744846]
[1693600476102,0.17171473,214.94,214.2,0.85744846]
[1693600476307,0.17171473,214.93,214.2,0.85744846]
[1693600476511,0.17171473,214.95,214.2,0.85744846]
[1693600476810,0.17171473,214.94,214.2,0.85744846]
[1693600477011,0.17171473,214.95,214.2,0.85744846]
[1693600477206,0.17171473,214.94,214.2,0.85744846]
[1693600477409,5.05841454,214.96,214.2,0.85744846]
[1693600477410,0.17171473,214.93,214.2,0.85744846]
[1693600477708,0.17171473,214.92,214.2,0.85744846]
[1693600477904,0.17171473,214.91,214.2,0.85744846]
[1693600478108,0.17171473,214.9,214.21,0.85744846]
[1693600478309,0.17171473,214.95,214.19,0.85744846]
[1693600478508,0.17171473,214.94,214.2,0.85744846]
[1693600478707,0.17171473,214.93,214.21,0.85744846]
[1693600479013,0.17171473,214.92,214.22,0.85744846]
[1693600479214,0.17171473,214.95,214.2,0.85744846]
[1693600479410,0.17171473,214.91,214.21,0.85744846]
[1693600479614,0.17171473,214.9,214.19,0.85744846]
[1693600479812,5.05841454,214.93,214.2,0.85744846]
[1693600480011,5.23012927,214.92,214.2,0.07476321]
[1693600480213,0.17171473,214.91,214.21,0.85744846]
[1693600481214,0.17171473,214.91,214.22,0.85744846]
[1693600481417,0.17171473,214.91,214.23,0.85744846]
[1693600481715,0.17171473,214.91,214.24,0.85744846]
[1693600481912,0.17171473,214.91,214.25,0.85744846]
[1693600482109,0.17171473,214.91,214.2,0.85744846]
[1693600482315,0.17171473,214.91,214.21,0.85744846]
[1693600482713,0.17171473,214.9,214.21,0.85744846]
[1693600483015,0.17171473,214.89,214.21,0.93221167]
[1693600483314,0.17171473,214.88,214.22,0.85744846]
[1693600483509,0.17171473,214.92,214.22,0.85744846]
[1693600483709,0.17171473,214.91,214.22,0.85744846]
[1693600484016,0.17171473,214.9,214.22,0.85744846]
[1693600484215,0.17171473,214.89,214.23,0.85744846]
[1693600484414,0.17171473,214.92,214.21,0.85744846]
[1693600484614,0.17171473,214.91,214.22,0.85744846]
[1693600484815,0.17171473,214.9,214.23,0.85744846]
[1693600485009,0.17171473,214.91,214.21,0.85744846]
[1693600485212,0.17171473,214.9,214.22,0.85744846]
[1693600485410,0.17171473,214.89,214.23,0.85744846]
[1693600485613,0.17171473,214.92,214.21,0.85744846]
[1693600485909,0.17171473,214.91,214.22,0.85744846]
[1693600486115,0.17171473,214.9,214.23,0.85744846]
[1693600486317,0.17171473,214.89,214.24,0.85744846]
[1693600486616,0.17171473,214.88,214.25,0.85744846]
[1693600486814,0.17171473,214.92,214.21,0.85744846]
[1693600487015,0.17171473,214.91,214.22,0.85744846]
[1693600487315,0.17171473,214.9,214.23,0.85744846]
[1693600487515,0.17171473,214.91,214.21,0.85744846]
[1693600487715,0.17171473,214.91,214.2,0.07476321]
[1693600487716,0.17171473,214.9,214.22,0.85744846]
[1693600487916,0.17171473,214.89,214.23,0.85744846]
[1693600488118,0.17171473,214.88,214.24,0.85744846]
[1693600488417,0.17171473,214.87,214.25,0.85744846]
[1693600488609,0.17171473,214.91,214.21,0.85744846]
[1693600488810,0.17171473,214.9,214.22,0.85744846]
[1693600489013,0.17171473,214.89,214.23,0.85744846]
[1693600489208,0.17171473,214.88,214.24,0.85744846]